Cogmind - Beta 16 @@@ ROGUE MODE // 2025.11.14 @ 18:54:19 Player: f3-rnm Result: Core destroyed Performance ------------- Evolutions (7) 3500 Regions Visited (28) 5600 Robots Destroyed (248) 1240 Value Destroyed (9345) 9345 Prototype IDs (135) 2700 Alien Tech Used (6) 1200 Bonus (6598) 6598 TOTAL SCORE: 30183 Bonus ------- High Alert Combat Kills 323 Registered with UFD 300 Met Optimus in HQ 500 Destroyed Z-Imprinter 1000 Met Zhirov 300 Met Warlord at Base 500 MAIN.C Attacked Warlord 500 Warlord Defense Kills 2902 Met Optimus at Protoforge 1000 Friendly Fire -727 Cogmind --------- Core Integrity 0/1300 Matter 294/300 Energy 1470/1470 System Corruption 23% Temperature Cool (0) Movement Treading (160) Location -3/Protoforge Parts ------- > --- POWER (2) -------- Light Antimatter Reactor Hybrid Graviton Reactor > --- PROPULSION (8) --- Enhanced Armored Heavy Treads Overtuned Armored Exoskeleton Enhanced Biometal Leg > --- UTILITY (9) ------ Scrap Suit High-capacity Storage Unit Experimental Active Sensor Suite Improved Launcher Guidance Computer Experimental Core Analyzer > --- WEAPON (2) ------- Plasma Lance > --- INVENTORY (20) --- Light Antimatter Reactor Experimental Heat Sink Zionite Metafield Generator Experimental Optical Array Precision Matter Filter Experimental Kinecellerator Launcher Loader Concept Core Shell Concept Core Shell Concept Core Shell Centrium Light Armor Plating Centrium Light Armor Plating Core Cannon Concept XC Strikerail Heavy Hardcell Cannon Tactical Quantum Warhead Enhanced Force Lance Peak State ------------ > --- POWER ------------ Light Antimatter Reactor Hybrid Graviton Reactor > --- PROPULSION ------- Enhanced Armored Heavy Treads Myomer Leg Overtuned Armored Exoskeleton Enhanced Biometal Leg Experimental VSS Leg > --- UTILITY ---------- Scrap Suit High-capacity Storage Unit Experimental Active Sensor Suite Improved Launcher Guidance Computer Experimental Core Analyzer Concept Core Shell Centrium Light Armor Plating > --- WEAPON ----------- Concept XC Strikerail Plasma Lance > --- INVENTORY -------- Light Antimatter Reactor Experimental Heat Sink Zionite Metafield Generator Experimental Optical Array Precision Matter Filter Experimental Kinecellerator Launcher Loader Concept Core Shell Concept Core Shell Concept Core Shell Centrium Light Armor Plating Supercharged TR Core Cannon Concept XC Strikerail Heavy Hardcell Cannon Tactical Quantum Warhead Enhanced Force Lance [Rating: 191] Favorites ----------- Power Light Nuclear Core Engine Light Angular Momentum Engine Power Core Light Nuclear Core Reactor Heavy Antimatter Reactor Propulsion Cooled Gravmag System Treads Spiked Treads Leg Myomer Leg Wheel Subdweller Monowheel Hover Unit Cooled Gravmag System Flight Unit Nuclear Pulse Thruster Utility Large Storage Unit Device Experimental Heat Sink Storage Large Storage Unit Processor Enhanced Optical Array Hackware Makeshift Hacking Suite Protection Light Armor Plating Weapon Barrage Gun Energy Gun Backup Laser III Energy Cannon Subdweller Beam Cannon Ballistic Gun Barrage Gun Ballistic Cannon Battle Cannon Launcher Rocket Array Special Weapon Junk Cannon Impact Weapon Makeshift Hammer Slashing Weapon Chainsword Piercing Weapon Lance Build | -11 -10 -10 -10 -9 -9 -6 -6 -6 -6 -6 -6 -6 -5 -5 -5 -5 -5 -5 -5 -4 -4 -4 -4 -4 -3 -3 -3 -3 ------- Run | Yrd Mat Min Sub Rec Scr Fac Was Fac Low Low Zio Dee Pro Fac Was Fac Upp Upp Zhi Pro Fac Upp Upp War Pro Res Qua Frg Slots Evolved 14 | . . . . . . 8 . . . . . . . 2 . . . . . . 2 . . . . 2 . . Power 1 | . . . . . . . . . . . . . . 1 . . . . . . . . . . . . . . Propulsion 6 | . . . . . . 4 . . . . . . . 1 . . . . . . . . . . . 1 . . Utility 7 | . . . . . . 4 . . . . . . . . . . . . . . 2 . . . . 1 . . Weapon . | . . . . . . . . . . . . . . . . . . . . . . . . . . . . . Parts Attached 199 | 6 2 2 16 . 1 16 1 17 2 . 3 11 . 50 1 6 . . 5 . 9 1 3 9 1 4 2 31 Power 21 | 1 . 1 1 . . 2 . 3 . . . 1 . 4 . 2 . . 1 . 1 . . 1 . . . 3 Engine 7 | 1 . 1 . . . 1 . 3 . . . . . 1 . . . . . . . . . . . . . . Core 6 | . . . 1 . . . . . . . . . . 2 . 2 . . . . 1 . . . . . . . Reactor 8 | . . . . . . 1 . . . . . 1 . 1 . . . . 1 . . . . 1 . . . 3 Propulsion 54 | 2 . . 4 . . 2 1 1 . . . 1 . 21 1 2 . . 3 . 2 . 1 2 1 2 . 8 Treads 5 | 2 . . 1 . . . . . . . . . . 1 . . . . . . . . . . . . . 1 Leg 8 | . . . . . . . . . . . . . . 3 . . . . . . . . . . . . . 5 Wheel 10 | . . . 3 . . . . . . . . . . 7 . . . . . . . . . . . . . . Hover 23 | . . . . . . . . . . . . 1 . 6 1 2 . . 3 . 2 . 1 2 1 2 . 2 Flight 8 | . . . . . . 2 1 1 . . . . . 4 . . . . . . . . . . . . . . Utility 70 | 1 2 . 3 . . 7 . 6 1 . 1 7 . 15 . 2 . . 1 . 3 . 2 4 . 2 1 12 Device 30 | . . . . . . 2 . 3 . . . 4 . 9 . 2 . . 1 . 2 . . 1 . 1 1 4 Storage 8 | 1 1 . . . . 1 . . . . . 1 . 1 . . . . . . 1 . . . . 1 . 1 Processor 11 | . . . . . . 3 . 2 . . . . . 2 . . . . . . . . 1 1 . . . 2 Hackware 4 | . . . . . . . . . 1 . 1 . . 1 . . . . . . . . . 1 . . . . Protection 17 | . 1 . 3 . . 1 . 1 . . . 2 . 2 . . . . . . . . 1 1 . . . 5 Artifact . | . . . . . . . . . . . . . . . . . . . . . . . . . . . . . Weapon 54 | 2 . 1 8 . 1 5 . 7 1 . 2 2 . 10 . . . . . . 3 1 . 2 . . 1 8 Energy Gun 2 | . . . . . . . . . . . . 1 . . . . . . . . . . . 1 . . . . Energy Cannon 5 | . . . 1 . . . . 1 . . . . . 1 . . . . . . 1 . . . . . . 1 Ballistic Gun 14 | 2 . . 4 . . . . . . . . . . 4 . . . . . . . . . . . . . 4 Ballistic Cannon 6 | . . 1 2 . . . . 2 . . . . . . . . . . . . . . . . . . . 1 Launcher 9 | . . . 1 . . 3 . 1 1 . . . . 2 . . . . . . 1 . . . . . . . Special Weapon 5 | . . . . . 1 . . 1 . . . 1 . . . . . . . . 1 . . 1 . . . . Impact Weapon 3 | . . . . . . 1 . . . . 1 . . 1 . . . . . . . . . . . . . . Slashing Weapon 5 | . . . . . . 1 . 1 . . . . . 2 . . . . . . . . . . . . 1 . Piercing Weapon 5 | . . . . . . . . 1 . . 1 . . . . . . . . . . 1 . . . . . 2 Special Melee Weapon . | . . . . . . . . . . . . . . . . . . . . . . . . . . . . . Unidentified Prototypes 54 | . . . . . 1 4 . 3 . . . 9 . 11 . 1 . . 4 . 1 . . 5 . 1 1 13 Parts Lost 83 | . . 1 9 . . 1 1 2 1 . . . . 32 . 1 . . . . 2 . 2 3 1 1 . 26 Power 11 | . . 1 1 . . . . 1 . . . . . 4 . 1 . . . . 1 . . . . . . 2 Propulsion 37 | . . . 3 . . . 1 . . . . . . 17 . . . . . . . . 1 1 1 1 . 12 Utility 21 | . . . 2 . . 1 . 1 1 . . . . 5 . . . . . . 1 . 1 1 . . . 8 Weapon 14 | . . . 3 . . . . . . . . . . 6 . . . . . . . . . 1 . . . 4 Highest Loss Streak 12 | . . 1 3 . . 1 1 1 1 . . . . 10 . 1 . . . . 1 . 2 2 1 1 . 12 To Critical Strikes 3 | . . . . . . . . . . . . . . 1 . . . . . . . . . . . . . 2 Average Backups 12 | . 5 11 13 10 9 10 11 11 10 11 10 11 13 15 13 13 13 13 13 14 12 12 12 12 12 11 15 12 Power . | . 1 . 1 1 1 1 . . . . . . . . . . 1 1 1 2 1 . . . 1 1 2 . Propulsion . | . 1 1 1 1 1 . . . . . . . . . . 1 2 2 1 . . . . . 1 . 1 . Utility 5 | . 3 8 5 2 2 3 3 3 4 4 4 5 7 9 8 7 7 6 6 6 5 5 5 6 5 4 5 5 Weapon 3 | . . 1 5 5 3 4 6 4 4 5 4 5 5 4 4 2 2 2 1 3 2 3 3 2 2 2 3 3 Tool/Special . | . . . . . . . . . . . . . . . . . . . . . . . . . . . . . Unused Backups 32 | . . . 7 . 2 2 . 5 . . . 2 . 2 . 1 . . . . . . . 1 . . . 10 Power 5 | . . . . . . . . 1 . . . 1 . . . 1 . . . . . . . . . . . 2 Propulsion 1 | . . . 1 . . . . . . . . . . . . . . . . . . . . . . . . . Utility 19 | . . . 5 . . 1 . 3 . . . 1 . 1 . . . . . . . . . 1 . . . 7 Weapon 6 | . . . 1 . 2 1 . 1 . . . . . 1 . . . . . . . . . . . . . . Tool/Special 1 | . . . . . . . . . . . . . . . . . . . . . . . . . . . . 1 Average Slot Usage (%) 81 | . 88 100 88 100 94 35 39 55 64 61 64 74 77 71 94 93 94 94 81 94 98 100 97 95 93 89 90 63 Engine 2 | . 14 14 1 . . 4 1 2 5 5 5 1 . . 5 . . . . . . . . . . . . . Core 4 | . . . 6 14 14 . 1 2 . . . . . 1 5 10 11 11 8 5 4 5 5 2 . . . . Reactor 1 | . . . . . . . . . . . . 3 5 3 . . . . 2 5 5 5 5 5 5 4 4 3 Treads 5 | . 27 28 12 . . . . . . . . . . 1 . . . . . . . . . . . . . 1 Wheel 6 | . . . 13 28 28 . . . . . . . . 4 . . . . . . . . . . . . . . Hover 9 | . . . . . . . . . . . . . . 8 35 35 35 35 34 41 36 36 36 36 35 36 38 9 Flight 3 | . . . . . . 10 8 12 16 16 16 15 16 5 . . . . . . . . . . . . . . Device 6 | . . . . . . 3 5 9 11 11 11 13 16 12 11 10 11 11 8 11 14 15 11 8 5 8 13 7 Storage 9 | . 14 14 14 14 14 5 5 5 5 5 5 5 5 5 5 5 5 5 5 5 8 10 10 10 10 9 9 5 Processor 8 | . . . . . . 3 16 16 11 11 11 11 11 7 17 17 17 17 17 17 15 15 15 17 21 19 19 17 Protection 5 | . 5 14 10 14 14 3 . 1 4 . . 3 5 1 . . . . . . . . 1 4 5 4 . 1 Energy Cannon 2 | . . . 7 14 8 . . . . . . . . . . . . . . . 1 . . . . . . . Ballistic Gun 5 | . 25 16 13 . . . . . . . . . . 2 11 7 5 5 . . 4 3 . . . . . 4 Ballistic Cannon 3 | . . 11 6 14 8 . . . . . . . . 1 . . . . . . . . . . . . . . Peak Build Rating 191 | 6 8 8 21 21 27 66 64 88 94 91 96 119 117 127 134 139 124 124 118 118 136 129 130 145 143 156 178 191 Average Rating 70 | 4 6 7 15 21 23 54 59 74 86 90 88 104 112 79 133 129 123 122 107 118 128 127 125 129 141 148 168 130 On Entrance 91 | . 6 8 8 21 21 27 61 64 83 84 91 89 112 112 124 134 124 124 122 118 118 129 126 127 138 143 152 178 Avg Prop Armor Cover (%) 4 | . . . 3 3 3 . 1 1 . . . . . 8 3 3 . . . . . . . . . . . 12 Naked Turns . | . . . . . . . . . . . . . . . . . . . . . . . . . . . . . Heaviest Build 121 | 12 30 32 43 43 43 31 26 41 45 46 46 39 37 121 50 64 62 62 61 61 75 71 77 91 87 94 94 102 Greatest Support 196 | 40 40 40 40 20 40 28 28 37 37 37 37 37 37 101 82 116 95 95 95 88 88 79 80 85 89 103 118 196 Greatest Overweight (x) 10 | . 1 . 3 2 2 1 1 1 1 1 1 1 . 10 . . . . . . 1 . . 1 1 . . 2 Average Overweight (x) . | . . . 1 2 1 . . . . . . . . . . . . . . . . . . . . . . . Largest Inventory Capacity 25 | 8 15 15 15 15 15 15 15 15 15 15 15 15 15 25 15 15 15 15 15 15 15 15 15 15 15 20 20 20 Average Capacity 15 | 7 14 15 15 15 15 14 15 15 15 15 15 15 15 19 15 15 15 15 15 15 15 15 15 15 15 15 20 19 Most Carried 23 | 2 10 13 15 13 15 15 15 15 15 15 15 15 15 23 15 15 15 15 15 15 15 15 15 15 15 17 20 20 Average Carried 14 | . 5 11 14 13 12 13 14 14 14 14 14 14 14 17 15 14 14 14 14 15 14 14 14 13 14 13 19 15 Final Capacity 20 | 8 15 15 15 15 15 15 15 15 15 15 15 15 15 15 15 15 15 15 15 15 15 15 15 15 15 20 20 20 Final Carried 20 | 2 10 13 13 13 14 15 14 15 15 14 15 15 15 15 15 15 15 15 15 15 14 15 15 15 14 17 20 20 Scrap Suit Usage (%) 1 | . . . . . . . . . . . . . . . . . . . . . . . . . . . . 13 Parts Cannibalized 1 | . . . . . . . . . . . . . . . . . . . . . . . . . . . . 1 Class Distribution -------------------- 47% | Mutant 13% | Scout 10% | Sprinter 8% | Derelict-Mutant 6% | Scavenger-Mutant 4% | Hacker-Mutant Dominant Class ---------------- Mutant | -10/Materials Mutant | -10/Mines Mutant | -10/Subcaves Mutant | -9/Recycling Mutant | -9/Scraptown Mutant | -6/Factory Scout | -6/Waste Scout | -6/Factory Mutant | -6/Lower Caves Mutant | -6/Lower Caves Hacker-Mutant | -6/Zion Hacker-Mutant | -6/Deep Caves Hacker-Mutant | -5/Proximity Caves Scavenger-Mutant | -5/Factory Sprinter | -5/Waste Mutant | -5/Factory Scout | -5/Upper Caves Scout | -5/Upper Caves Scout | -5/Zhirov Scout | -4/Proximity Caves Scout | -4/Factory Scout | -4/Upper Caves Sprinter | -4/Upper Caves Sprinter | -4/Warlord Mutant | -3/Proximity Caves Sprinter | -3/Research Scavenger-Scout | -3/Quarantine Scavenger-Mutant | -3/Protoforge Resources | -11 -10 -10 -10 -9 -9 -6 -6 -6 -6 -6 -6 -6 -5 -5 -5 -5 -5 -5 -5 -4 -4 -4 -4 -4 -3 -3 -3 -3 ----------- Run | Yrd Mat Min Sub Rec Scr Fac Was Fac Low Low Zio Dee Pro Fac Was Fac Upp Upp Zhi Pro Fac Upp Upp War Pro Res Qua Frg Matter Collected 9855 | 212 . 233 419 . 209 . . 705 161 202 133 284 83 1770 305 210 269 192 . 30 829 148 28 1928 96 357 78 974 Remotely 676 | . . . . . . . . . . . . . . 30 . . . . . . . . . 646 . . . . Salvage Created 7227 | . . 239 255 . . . . 597 161 . . 91 122 1841 305 384 71 311 . 119 895 154 58 583 120 240 70 611 Parts 324 | . . 13 19 . . . . 32 4 . . 20 3 81 4 10 3 12 . 4 32 3 2 15 3 30 7 27 Haulers Intercepted 6 | . . . . . . . . 2 . . . . . 2 . 1 . . . . . . 1 . . . . . Recyclers Shooed 7 | . . . . . . . . . . . . . . 2 . 1 . . . . 4 . . . . . . . Parts Field Recycled . | . . . . . . . . . . . . . . . . . . . . . . . . . . . . . Retrieved Matter . | . . . . . . . . . . . . . . . . . . . . . . . . . . . . . Parts Self-Destructed 32 | . . . 21 . . . . . 3 . . . 1 . . . . 3 . 2 . . 2 . . . . . Prevented . | . . . . . . . . . . . . . . . . . . . . . . . . . . . . . Parts Restored . | . . . . . . . . . . . . . . . . . . . . . . . . . . . . . Kills | -11 -10 -10 -10 -9 -9 -6 -6 -6 -6 -6 -6 -6 -5 -5 -5 -5 -5 -5 -5 -4 -4 -4 -4 -4 -3 -3 -3 -3 ------- Run | Yrd Mat Min Sub Rec Scr Fac Was Fac Low Low Zio Dee Pro Fac Was Fac Upp Upp Zhi Pro Fac Upp Upp War Pro Res Qua Frg Combat Hostiles Destroyed 183 | . . 8 12 . . . . 7 9 . . 1 3 27 1 6 5 12 . 4 13 3 5 25 5 10 . 27 Melee 11 | . . . . . . . . . . . . . . 1 . . . . . . . . . . . 2 . 8 Guns 24 | . . 1 3 . . . . . . . . . . 1 1 1 1 . . . 1 . . . . . . 15 Cannons 22 | . . 7 4 . . . . 1 . . . 1 . 7 . . . . . . . . . . . . . 2 AOE 123 | . . . 5 . . . . 6 9 . . . 3 18 . 5 4 12 . 4 10 3 4 25 5 8 . 2 Classes Destroyed 27 | . . 3 3 . . . . 5 . . . . . 7 1 . . 1 . 1 . . 1 4 . . . 1 Worker 17 | . . . . . . . . 5 . . . . . 7 . . . . . . 3 . . . . 1 1 . Builder 15 | . . . . . . . . 2 . . . . . 8 . . . . . . 2 . . . . 1 2 . Tunneler 2 | . . . . . . . . . . . . . . 1 . . . . . . . . . . . 1 . . Hauler 6 | . . . . . . . . 2 . . . . . 2 . 1 . . . . . . 1 . . . . . Recycler 13 | . . 1 . . . . . 1 . . . . . 7 . 1 . . . . 3 . . . . . . . Minesweeper 1 | . . . . . . . . . . . . . . . . . . . . . . . 1 . . . . . Mechanic 3 | . . . . . . . . . . . . . . 1 . . . . . . 1 . . 1 . . . . Operator 3 | . . . . . . . . 1 . . . . . 1 . . . . . . . . . . . . . 1 Drone 18 | . . . . . . . . . . . . . . . . . . . . 1 . . . . . . . 17 Turret 2 | . . . 2 . . . . . . . . . . . . . . . . . . . . . . . . . Watcher 2 | . . . . . . . . . . . . . . 2 . . . . . . . . . . . . . . Swarmer 55 | . . 4 5 . . . . 6 4 . . . . . . 5 4 4 . . 5 . . 7 . 9 . 2 Grunt 65 | . . 4 . . . . . . 5 . . . 3 13 . . . 8 . 3 4 3 5 12 3 . . 2 Brawler 1 | . . . . . . . . . . . . . . . . . . . . . . . . 1 . . . . Duelist 2 | . . . . . . . . . . . . . . 1 . . . . . . . . . 1 . . . . Protector 3 | . . . . . . . . . . . . . . 1 . . . . . . . . . 2 . . . . Sentry 3 | . . . . . . . . . . . . . . 2 . 1 . . . . . . . . . . . . Specialist 1 | . . . . . . . . . . . . . . . . . . . . . . . . 1 . . . . Hunter 8 | . . . . . . . . . . . . . . 4 . . . . . . 2 . . . 2 . . . Programmer 16 | . . . . . . . . 1 . . . . . 6 . . 1 . . . 2 . . . . 1 . 5 Compactor 1 | . . . . . . . . . . . . . . . 1 . . . . . . . . . . . . . Enhanced Demolisher 1 | . . . . . . . . . . . . . . . . . . . . . . . . 1 . . . . Striker 1 | . . . . . . . . . . . . . . . . . . . . . . . . . . . . 1 Executioner 1 | . . . . . . . . . . . . . . . . . . . . . . . . 1 . . . . Artisan 1 | . . . 1 . . . . . . . . . . . . . . . . . . . . . . . . . Subdweller 7 | . . . 7 . . . . . . . . . . . . . . . . . . . . . . . . . Z-Technician 5 | . . . . . . . . . . . . 5 . . . . . . . . . . . . . . . . Samaritan 3 | . . . . . . . . . . . . . . . . . . 1 . . . . . . 2 . . . Best Kill Streak 11 | . . 3 5 . . . . 4 6 . . 5 3 9 1 5 4 5 . 4 6 3 6 11 3 6 3 4 Combat Bots Only 11 | . . 3 3 . . . . 3 6 . . 1 3 4 1 5 4 5 . 4 5 3 5 11 3 5 . 4 Max Kills in Single Turn 7 | . . 1 2 . . . . 3 3 . . 1 2 7 1 5 4 3 . 1 6 2 2 5 1 4 1 2 Gunslinging . | . . . . . . . . . . . . . . . . . . . . . . . . . . . . . Exploded 5 | . . . 2 . . . . 3 3 . . . 2 2 . 5 4 3 . 1 5 2 2 4 1 3 . 1 Melee 1 | . . . . . . . . . . . . . . 1 . . . . . . . . . . . 1 . 1 Uniques/NPCs Destroyed 1 | . . . . . . . . . . . . 1 . . . . . . . . . . . . . . . . Z-Imprinter (-6/Deep Caves) Combat | -11 -10 -10 -10 -9 -9 -6 -6 -6 -6 -6 -6 -6 -5 -5 -5 -5 -5 -5 -5 -4 -4 -4 -4 -4 -3 -3 -3 -3 -------- Run | Yrd Mat Min Sub Rec Scr Fac Was Fac Low Low Zio Dee Pro Fac Was Fac Upp Upp Zhi Pro Fac Upp Upp War Pro Res Qua Frg Hostile Shots Fired 1124 | . . 51 100 . . 101 1 67 16 . . 33 2 205 . 23 13 23 . 32 54 8 15 38 10 37 12 283 Missed 452 | . . 15 30 . . 55 . 35 6 . . 16 . 61 . 11 9 13 . 19 24 3 8 18 7 19 8 95 Hits 672 | . . 36 70 . . 46 1 32 10 . . 17 2 144 . 12 4 10 . 13 30 5 7 20 3 18 4 188 Melee 11 | . . . . . . . 1 . . . . . . . . . . . . . . . . . . . . 10 Projectile 661 | . . 36 70 . . 46 . 32 10 . . 17 2 144 . 12 4 10 . 13 30 5 7 20 3 18 4 178 AOE 5 | . . . 3 . . . . . . . . . . . . . . . . . . . . 2 . . . . Critical Strikes 36 | . . . 1 . . . . 1 . . . . . 8 . . . . . 1 1 1 1 . 1 . . 21 Part Disruptions 1 | . . . . . . . . . . . . . . 1 . . . . . . . . . . . . . . Damage Taken 16614 | . . 431 1245 . . 432 45 833 225 . . 578 38 3629 . 243 98 189 . 184 646 122 202 725 79 433 155 6082 Core 2681 | . . 19 130 . . 80 . 189 7 . . 67 18 681 . 25 5 20 . 43 101 18 26 72 5 66 35 1074 Absorbed by Shields . | . . . . . . . . . . . . . . . . . . . . . . . . . . . . . Redirected to Shielding 283 | . . . . . . . . 91 11 . . . . . . . . . . . . . . . . . . 181 Ignored by Resistances 29 | . . . 29 . . . . . . . . . . . . . . . . . . . . . . . . . Regen/Repaired (Parts) 909 | . . . . . . . . 43 . . . . . . . 73 . . . . 164 . . 289 . . 113 227 Core Remaining (%) 59 | 100 . . . . 40 . . . . . . . 57 . . . . . . 22 . . . . 80 . . . Volleys Fired 440 | . . 30 60 . . . . 13 8 . 6 31 2 77 11 16 11 12 . 8 72 3 7 17 8 4 . 44 Largest 2 | . . 2 2 . . . . 1 1 . 1 1 1 2 2 2 1 1 . 1 1 1 1 1 1 1 . 2 Hottest 300 | . . 50 120 . . . . 45 50 . . 33 45 81 60 60 45 45 . 46 81 45 80 80 45 45 . 300 Shots Fired 601 | . . 60 108 . . . . 13 8 . 6 31 2 112 22 28 10 12 . 8 72 3 7 17 8 4 . 70 Gun 286 | . . 31 49 . . . . . . . . . . 47 22 27 7 5 . . 40 . . . . . . 58 Cannon 187 | . . 29 51 . . . . 5 . . . 26 . 47 . . . . . . 22 . . . . . . 7 Launcher 111 | . . . 8 . . . . 3 8 . . . 2 18 . 1 3 7 . 8 9 3 7 17 8 4 . 5 Special 17 | . . . . . . . . 5 . . 6 5 . . . . . . . . 1 . . . . . . . Kinetic 412 | . . 60 73 . . . . 5 . . . 26 . 88 22 27 7 5 . . 40 . . . . . . 59 Thermal 37 | . . . 27 . . . . . . . . 4 . . . . . . . . . . . . . . . 6 Explosive 101 | . . . 8 . . . . 3 8 . . . 2 18 . 1 3 7 . 8 5 3 4 14 8 4 . 5 Electromagnetic 38 | . . . . . . . . . . . . . . 6 . . . . . . 26 . 3 3 . . . . Impact 11 | . . . . . . . . 5 . . 6 . . . . . . . . . . . . . . . . . Robot Hit Streak 42 | . . 6 22 . . . . 6 6 . . 4 . 11 13 6 9 8 . 3 9 . 9 10 8 9 . 42 Robot Miss Streak 10 | . . 3 8 . . . . 2 1 . . 2 . 10 2 2 3 2 . . 3 . 1 1 2 4 . 1 Penetration Max 1 | . . . . . . . . . . . . . . 1 . . . . . . 1 . . . . . . 1 Secondary Targets . | . . . . . . . . . . . . . . . . . . . . . . . . . . . . . Shots Hit Robots 410 | . . 35 52 . . 2 . 24 3 . . 19 . 90 13 18 7 2 . 1 33 . 9 12 5 10 3 72 Core Hits 596 | . . 14 26 . . . . 15 38 . . 4 10 144 5 17 9 50 . 10 55 15 16 83 19 27 1 38 Critical Kills 6 | . . . 1 . . . . . . . . . . . . . . . . . . . . . . . . 5 Critical Parts Destroyed 11 | . . . . . . . . . . . . 1 . 3 . . . . . . 1 . . . . . . 6 Critical Strikes 30 | . . 2 1 . . 1 . 3 . . . 1 . 5 1 . . . . . 2 . . . 1 1 . 12 Meltdown 1 | . . . 1 . . . . . . . . . . . . . . . . . . . . . . . . . Destroy 15 | . . . . . . . . . . . . . . 2 1 . . . . . 1 . . . . . . 11 Blast 3 | . . 2 . . . . . . . . . . . 1 . . . . . . . . . . . . . . Corrupt 1 | . . . . . . . . . . . . . . . . . . . . . 1 . . . . . . . Smash 2 | . . . . . . . . . . . . 1 . 1 . . . . . . . . . . . . . . Sever 3 | . . . . . . 1 . 1 . . . . . 1 . . . . . . . . . . . . . . Impale 5 | . . . . . . . . 2 . . . . . . . . . . . . . . . . 1 1 . 1 Melee Attacks 175 | . . . . . . 12 . 48 2 . . 15 1 35 . . . . . . . . 4 3 2 10 10 33 Impact 26 | . . . . . . 7 . . . . . 15 1 3 . . . . . . . . . . . . . . Slashing 105 | . . . . . . 5 . 39 2 . . . . 32 . . . . . . . . . . . . 7 20 Piercing 44 | . . . . . . . . 9 . . . . . . . . . . . . . . 4 3 2 10 3 13 Sneak Attacks 49 | . . . . . . . . 13 . . . 4 . 11 . . . . . . . . 1 2 2 2 3 11 Combat Hostiles . | . . . . . . . . . . . . . . . . . . . . . . . . . . . . . Follow-up Attacks . | . . . . . . . . . . . . . . . . . . . . . . . . . . . . . Damage Inflicted 37458 | . . 519 1198 . . 82 . 2402 1191 . . 873 244 8007 555 862 461 1492 . 1458 2736 367 1838 5241 1257 1480 476 4719 Guns 4663 | . . 133 295 . . . . . . . . . . 855 555 488 144 . . . 466 . . . . . . 1727 Cannons 3197 | . . 386 395 . . . . . . . . 405 . 913 . . . . . . 598 . . . . . . 500 Explosions 22453 | . . . 508 . . . . 701 1191 . . . 244 4532 . 374 317 1492 . 1458 1672 367 1655 5085 1081 1103 . 673 Melee 6738 | . . . . . . 82 . 1324 . . . 438 . 1707 . . . . . . . . 183 156 176 377 476 1819 Ramming . | . . . . . . . . . . . . . . . . . . . . . . . . . . . . . Kinetic 6534 | . . 519 522 . . . . . . . . 405 . 1708 555 488 144 . . . 466 . . . . . . 1727 Thermal 1600 | . . . 168 . . . . 162 . . . 30 . 262 . . . . . . 413 . . 65 . . . 500 Explosive 20693 | . . . 508 . . . . 539 1191 . . . 244 4270 . 374 317 1492 . 1458 1014 367 1365 4697 1081 1103 . 673 Electromagnetic 1516 | . . . . . . . . . . . . . . 60 . . . . . . 843 . 290 323 . . . . Impact 999 | . . . . . . . . 377 . . . 438 . 184 . . . . . . . . . . . . . . Slashing 3735 | . . . . . . 82 . 725 . . . . . 1523 . . . . . . . . . . . . 476 929 Piercing 2381 | . . . . . . . . 599 . . . . . . . . . . . . . . 183 156 176 377 . 890 Highest Corruption 23 | . . . . . . . . . . . . . . 5 11 11 12 12 12 12 4 4 5 5 . 1 1 23 Average Corruption 10 | . . . . . . . . . . . . . . 1 9 11 11 12 12 12 3 4 4 5 . 1 1 18 Corruption Purged . | . . . . . . . . . . . . . . . . . . . . . . . . . . . . . Corruption Blocked 5 | . . . . . . . . 5 . . . . . . . . . . . . . . . . . . . . Effects 139 | . . . . . . . . . . . . . . 10 6 10 7 9 3 6 9 . 5 . . 1 2 71 Message Errors 33 | . . . . . . . . . . . . . . 4 1 4 . 3 2 1 2 . 1 . . . 1 14 Matter Fused 27 | . . . . . . . . . . . . . . 1 2 . 3 . 1 1 1 . . . . . . 18 Heat Flow Errors 8 | . . . . . . . . . . . . . . 1 . . . . . 1 3 . 1 . . 1 . 1 Energy Discharges 20 | . . . . . . . . . . . . . . 2 . 2 1 1 . . 1 . 2 . . . 1 10 Parts Rejected 2 | . . . . . . . . . . . . . . . . . 1 . . . . . . . . . . 1 Parts Fused 1 | . . . . . . . . . . . . . . . 1 . . . . . . . . . . . . . Data Loss (minor) 22 | . . . . . . . . . . . . . . 1 1 3 1 4 . . . . 1 . . . . 11 Data Loss (major) 6 | . . . . . . . . . . . . . . . . 1 . 1 . . . . . . . . . 4 Misfires 2 | . . . . . . . . . . . . . . 1 . . . . . . . . . . . . . 1 Alerts 6 | . . . . . . . . . . . . . . . . . . . . . 2 . . . . . . 4 Misdirections 8 | . . . . . . . . . . . . . . . 1 . . . . 3 . . . . . . . 4 Weapon Failures 4 | . . . . . . . . . . . . . . . . . 1 . . . . . . . . . . 3 Overload Shots . | . . . . . . . . . . . . . . . . . . . . . . . . . . . . . Overflow Damage 3793 | . . . 28 . . . . 680 72 . . 390 . 746 . . 12 . . 18 43 . 82 189 181 288 236 828 Projectiles 534 | . . . 4 . . . . 218 . . . 12 . 10 . . . . . . 43 . . . . . . 247 Explosions 578 | . . . 24 . . . . 131 72 . . . . 76 . . 12 . . 18 . . 9 189 10 37 . . Melee 2681 | . . . . . . . . 331 . . . 378 . 660 . . . . . . . . 73 . 171 251 236 581 Knockbacks 16 | . . 2 4 . . . . 1 . . . 6 . 3 . . . . . . . . . . . . . . Impact 4 | . . . . . . . . 1 . . . 2 . 1 . . . . . . . . . . . . . . Kinetic 12 | . . 2 4 . . . . . . . . 4 . 2 . . . . . . . . . . . . . . Secondary . | . . . . . . . . . . . . . . . . . . . . . . . . . . . . . Self-Inflicted Damage 1012 | . . . 47 . . . . . 39 . . . . 616 . 34 16 13 . . 92 18 35 65 21 16 . . Shots 43 | . . . 2 . . . . . 3 . . . . 20 . 2 1 1 . . 6 1 3 1 2 1 . . Rammed . | . . . . . . . . . . . . . . . . . . . . . . . . . . . . . Targets Rammed . | . . . . . . . . . . . . . . . . . . . . . . . . . . . . . Kicked . | . . . . . . . . . . . . . . . . . . . . . . . . . . . . . Crushed . | . . . . . . . . . . . . . . . . . . . . . . . . . . . . . Highest Temperature 430 | . . 92 76 . . 11 . 1 15 . . 21 . 430 . 79 11 2 . 223 233 . 163 1 . 200 . 180 Average Temperature 37 | . . 31 23 . . 5 . 1 5 . . 8 . 172 . 22 9 2 . 127 64 . 20 1 . 29 . 92 Received Heat Transfer 2195 | . . 201 291 . . 84 . 57 75 . . 153 18 654 . . . 78 . . 63 30 48 51 27 12 9 344 Effects 4 | . . . . . . . . . . . . . . 1 . . . . . . 3 . . . . . . . Interference 3 | . . . . . . . . . . . . . . . . . . . . . 3 . . . . . . . Matter Decay 1 | . . . . . . . . . . . . . . 1 . . . . . . . . . . . . . . Siege Activations . | . . . . . . . . . . . . . . . . . . . . . . . . . . . . . Martial Activations . | . . . . . . . . . . . . . . . . . . . . . . . . . . . . . Shielding Activations . | . . . . . . . . . . . . . . . . . . . . . . . . . . . . . Robots Disrupted 1 | . . . . . . . . . . . . . . . . . . . . . . . . 1 . . . . Combat Hostiles 1 | . . . . . . . . . . . . . . . . . . . . . . . . 1 . . . . Robots Corrupted 7 | . . . . . . . . . . . . 2 . 1 . . . . . . 3 . 1 . . . . . Combat Hostiles 3 | . . . . . . . . . . . . . . . . . . . . . 2 . 1 . . . . . Parts Fried 20 | . . . . . . . . 2 . . . 5 . 1 . . . . . . 10 . . 2 . . . . Impact Corruptions 20 | . . . . . . . . 7 . . . 9 . 4 . . . . . . . . . . . . . . Robots Melted 1 | . . . 1 . . . . . . . . . . . . . . . . . . . . . . . . . Combat Hostiles . | . . . . . . . . . . . . . . . . . . . . . . . . . . . . . Parts Melted . | . . . . . . . . . . . . . . . . . . . . . . . . . . . . . Heat Transferred 947 | . . . 222 . . . . 100 . . . 75 . 200 . . . . . . 250 . . 100 . . . . Parts Sabotaged . | . . . . . . . . . . . . . . . . . . . . . . . . . . . . . Parts Stolen . | . . . . . . . . . . . . . . . . . . . . . . . . . . . . . Parts Stripped . | . . . . . . . . . . . . . . . . . . . . . . . . . . . . . Power Chain Reactions 4 | . . . . . . . . . . . . . . . . . . . . . 1 . . 3 . . . . Alert | -11 -10 -10 -10 -9 -9 -6 -6 -6 -6 -6 -6 -6 -5 -5 -5 -5 -5 -5 -5 -4 -4 -4 -4 -4 -3 -3 -3 -3 ------- Run | Yrd Mat Min Sub Rec Scr Fac Was Fac Low Low Zio Dee Pro Fac Was Fac Upp Upp Zhi Pro Fac Upp Upp War Pro Res Qua Frg Maximum Alert Level 3 | . . . . . . . . 2 . . . . . 3 1 2 . . . . 2 . . . . 1 1 3 Low Security (%) 48 | 100 100 100 . 100 . 100 100 73 . . . . . 46 . 28 . . . . 29 . . . . 46 . . Level 1 18 | . . . . . . . . 16 . . . . . 25 100 26 . . . . 25 . . . . 53 100 12 Level 2 30 | . . . . . . . . 10 . . . . . 27 . 45 . . . . 44 . . . . . . 77 Level 3 2 | . . . . . . . . . . . . . . . . . . . . . . . . . . . . 9 Level 4 . | . . . . . . . . . . . . . . . . . . . . . . . . . . . . . Level 5 . | . . . . . . . . . . . . . . . . . . . . . . . . . . . . . High Security . | . . . . . . . . . . . . . . . . . . . . . . . . . . . . . Max Security . | . . . . . . . . . . . . . . . . . . . . . . . . . . . . . Peak Influence 828 | . . 126 . 56 . 21 18 488 . . . . . 724 253 475 . . . . 696 . . . . 388 371 828 Initial 253 | . . . . 56 . . 3 . . . . . . 37 253 158 . . . . 190 . . . . 50 218 216 Average 264 | . . 44 . 41 . 3 2 107 . . . . . 274 242 327 . . . . 337 . . . . 251 240 570 Influence Increases 7693 | . . 270 210 . . 74 15 815 200 . . . 70 1513 14 479 120 270 . 95 970 70 110 475 165 418 248 1092 Destroy 0b10 Robot/C 3100 | . . 160 140 . . . . 140 180 . . . 60 520 . 120 100 240 . 60 260 60 100 460 100 200 . 200 Destroy 0b10 Robot/NC 415 | . . 5 . . . . . 55 . . . . . 150 . 10 . . . 5 45 . 10 15 . 15 15 90 Destroy Leader 424 | . . 30 10 . . . . 24 20 . . . 10 128 . 22 20 30 . . 40 10 . . 20 30 . 30 Successful Hack 116 | . . . . . . 6 . 11 . . . . . 26 . 7 . . . . 26 . . . . 16 . 24 Disable Machine 525 | . . . . . . 15 . 105 . . . . . 105 . 105 . . . . 120 . . . . . 45 30 Anti-Garrison Action 150 | . . . . . . . . . . . . . . . . . . . . . . . . . . . . 150 Destroy Structure 1208 | . . . . . . 8 . 90 . . . . . 404 14 140 . . . . 254 . . . . 82 8 208 Advance Influence 150 | . . . . . . . . . . . . . . . . . . . . . 150 . . . . . . . Partial Spotted 225 | . . . . . . . 15 75 . . . . . 45 . . . . . . 45 . . . . 15 . 30 Lose Combat Pursuer 1380 | . . 75 60 . . 45 . 315 . . . . . 135 . 75 . . . 30 30 . . . 45 60 180 330 Influence Decreases 7195 | . . 270 92 92 26 63 26 333 299 254 129 . 10 849 511 229 248 197 422 30 339 298 180 570 393 105 250 980 Entered New Map 3147 | . . . . 62 26 . 8 . 179 74 129 . . 23 471 69 178 67 422 . 25 258 90 398 303 25 170 170 Time Decay 3271 | . . 260 42 30 . 63 8 316 110 180 . . 10 506 40 150 70 130 . 30 294 40 70 142 80 70 80 550 Lost Part 777 | . . 10 50 . . . 10 17 10 . . . . 320 . 10 . . . . 20 . 20 30 10 10 . 260 Squads Dispatched 79 | . . . . . . 9 . 16 . . . . . 14 . 7 . . . . 9 . . . . 7 4 13 Investigation 44 | . . . . . . 6 . 11 . . . . . 7 . 4 . . . . 7 . . . . 3 1 5 Extermination 13 | . . . . . . 2 . 2 . . . . . 3 . 1 . . . . 2 . . . . . 2 1 Reinforcement 20 | . . . . . . 1 . 3 . . . . . 4 . 2 . . . . . . . . . 4 1 5 Assault 2 | . . . . . . . . . . . . . . . . . . . . . . . . . . . . 2 Garrison . | . . . . . . . . . . . . . . . . . . . . . . . . . . . . . Intercept . | . . . . . . . . . . . . . . . . . . . . . . . . . . . . . Searches Triggered . | . . . . . . . . . . . . . . . . . . . . . . . . . . . . . Construction Impeded 3 | . . . . . . . . 1 . . . . . 2 . . . . . . . . . . . . . . Haulers Reinforced 2 | . . . . . . . . 1 . . . . . . . 1 . . . . . . . . . . . . Active Scanning Responses . | . . . . . . . . . . . . . . . . . . . . . . . . . . . . . Cargo Convoy Interrupts 1 | . . . . . . . . . . . . . . 1 . . . . . . . . . . . . . . Stealth | -11 -10 -10 -10 -9 -9 -6 -6 -6 -6 -6 -6 -6 -5 -5 -5 -5 -5 -5 -5 -4 -4 -4 -4 -4 -3 -3 -3 -3 --------- Run | Yrd Mat Min Sub Rec Scr Fac Was Fac Low Low Zio Dee Pro Fac Was Fac Upp Upp Zhi Pro Fac Upp Upp War Pro Res Qua Frg Distress Signals 17 | . . . . . . 1 . . . . . . . 2 . . . . . . . . . . . 1 2 11 Communications Jammed 42 | . . . . . . . . . . . . . . . . . . . . . 2 . 1 . . . . 39 Distress Signals 40 | . . . . . . . . . . . . . . . . . . . . . . . 1 . . . . 39 Times Spotted 396 | . 1 13 16 . . 14 6 36 6 . . 3 6 51 6 13 2 13 . 9 22 2 4 55 6 22 15 75 Peak Tracking Total 18 | . 1 3 3 . . 6 6 10 2 . . 3 4 6 5 8 1 5 . 5 7 2 4 17 3 9 16 18 Tactical Retreats 43 | . . 3 2 . . 2 1 9 . . . . . 7 . 2 . . . 1 2 . . . 1 1 2 10 Traps | -11 -10 -10 -10 -9 -9 -6 -6 -6 -6 -6 -6 -6 -5 -5 -5 -5 -5 -5 -5 -4 -4 -4 -4 -4 -3 -3 -3 -3 ------- Run | Yrd Mat Min Sub Rec Scr Fac Was Fac Low Low Zio Dee Pro Fac Was Fac Upp Upp Zhi Pro Fac Upp Upp War Pro Res Qua Frg Traps Triggered 16 | . 3 . . . . 1 . 2 . . . . . 2 . . . . . . 1 . . 2 . 1 3 1 Indirectly 2 | . . . . . . . . . . . . . . . . . . . . . . . . 2 . . . . Trap Hack Attempts . | . . . . . . . . . . . . . . . . . . . . . . . . . . . . . Triggered . | . . . . . . . . . . . . . . . . . . . . . . . . . . . . . Disarmed . | . . . . . . . . . . . . . . . . . . . . . . . . . . . . . Reprogrammed . | . . . . . . . . . . . . . . . . . . . . . . . . . . . . . Reused 1 | . . . . . . . . . . . . 1 . . . . . . . . . . . . . . . . Traps Extracted . | . . . . . . . . . . . . . . . . . . . . . . . . . . . . . Installed 3 | . . . 1 . . . . . . . . 2 . . . . . . . . . . . . . . . . Triggered . | . . . . . . . . . . . . . . . . . . . . . . . . . . . . . Most Traps Carried 2 | . . . . . 2 2 2 2 2 2 2 2 . . . . . . . . . . . . . . . . Machines | -11 -10 -10 -10 -9 -9 -6 -6 -6 -6 -6 -6 -6 -5 -5 -5 -5 -5 -5 -5 -4 -4 -4 -4 -4 -3 -3 -3 -3 ---------- Run | Yrd Mat Min Sub Rec Scr Fac Was Fac Low Low Zio Dee Pro Fac Was Fac Upp Upp Zhi Pro Fac Upp Upp War Pro Res Qua Frg Machines Disabled 48 | . . . 3 . . 1 . 7 . . 3 1 . 7 . 7 . 1 . . 8 . . 2 . . 3 5 Max in Single Turn 6 | . . . 1 . . 1 . 6 . . 1 1 . 3 . 3 . 1 . . 2 . . 1 . . 1 2 Garrison Access 1 | . . . . . . . . . . . . . . . . . . . . . . . . . . . . 1 Machines Repaired 1 | . . . . . . . . 1 . . . . . . . . . . . . . . . . . . . . Machines Dismantled 1 | . . . . . . . . . . . . . . . . . . . . . . . . 1 . . . . Machines Sabotaged . | . . . . . . . . . . . . . . . . . . . . . . . . . . . . . Overloaded Fab Kills . | . . . . . . . . . . . . . . . . . . . . . . . . . . . . . Hacking | -11 -10 -10 -10 -9 -9 -6 -6 -6 -6 -6 -6 -6 -5 -5 -5 -5 -5 -5 -5 -4 -4 -4 -4 -4 -3 -3 -3 -3 --------- Run | Yrd Mat Min Sub Rec Scr Fac Was Fac Low Low Zio Dee Pro Fac Was Fac Upp Upp Zhi Pro Fac Upp Upp War Pro Res Qua Frg Machines Accessed 74 | . . . 2 . 2 7 . 13 1 1 . . . 11 . 5 . 1 4 . 9 . . 4 . 6 2 6 Terminals 17 | . . . . . . 1 . 2 . . . . . 5 . 2 . . . . 1 . . . . 3 . 3 Fabricators . | . . . . . . . . . . . . . . . . . . . . . . . . . . . . . Repair Stations 8 | . . . . . . . . 3 . . . . . 1 . 1 . . . . 2 . . . . . 1 . Recycling Units 29 | . . . . . . 6 . 6 . . . . . 4 . 1 . . . . 6 . . . . 3 . 3 Scanalyzers 3 | . . . . . . . . 1 . . . . . 1 . 1 . . . . . . . . . . . . Garrison Access 2 | . . . . . . . . 1 . . . . . . . . . . . . . . . . . . 1 . Total Hacks 158 | . . . 6 . 5 15 . 29 1 1 . . . 24 . 9 . 1 17 . 17 . . 6 . 8 5 14 Successful 88 | . . . 6 . 5 7 . 12 1 1 . . . 8 . 5 . 1 17 . 10 . . 6 . 5 1 3 Failed 70 | . . . . . . 8 . 17 . . . . . 16 . 4 . . . . 7 . . . . 3 4 11 Catastrophic 16 | . . . . . . . . 4 . . . . . 5 . 1 . . . . 1 . . . . 2 1 2 Database Lockouts . | . . . . . . . . . . . . . . . . . . . . . . . . . . . . . Manual 83 | . . . . . . 15 . 15 . . . . . 12 . 7 . . . . 12 . . . . 6 2 14 Terminals 36 | . . . . . . 2 . 5 . . . . . 12 . 5 . . . . 3 . . . . 3 . 6 Fabricators . | . . . . . . . . . . . . . . . . . . . . . . . . . . . . . Repair Stations 16 | . . . . . . . . 6 . . . . . 3 . 1 . . . . 4 . . . . . 2 . Recycling Units 54 | . . . . . . 13 . 10 . . . . . 7 . 1 . . . . 10 . . . . 5 . 8 Scanalyzers 7 | . . . . . . . . 3 . . . . . 2 . 2 . . . . . . . . . . . . Garrison Access 8 | . . . . . . . . 5 . . . . . . . . . . . . . . . . . . 3 . Terminal Hacks 45 | . . . 6 . 5 . . 1 1 1 . . . 3 . 1 . 1 17 . 1 . . 6 . 2 . . Record 20 | . . . 5 . 4 . . . . . . . . . . . . 1 5 . . . . 5 . . . . Part Schematic 4 | . . . . . . . . . . . . . . . . . . . 4 . . . . . . . . . Robot Analysis 4 | . . . . . . . . . . . . . . . . . . . 4 . . . . . . . . . Prototype ID Bank 4 | . . . . . . . . . . . . . . . . . . . 4 . . . . . . . . . Open Door 4 | . . . . . . . . . 1 1 . . . . . . . . . . . . . 1 . 1 . . Branch Access Points 4 | . . . . . . . . 1 . . . . . 1 . 1 . . . . . . . . . 1 . . Locate Traps 1 | . . . . . . . . . . . . . . 1 . . . . . . . . . . . . . . Recall Extermination 1 | . . . . . . . . . . . . . . 1 . . . . . . . . . . . . . . Zone Layout 1 | . . . . . . . . . . . . . . . . . . . . . 1 . . . . . . . Proto ID Catalog 2 | . . . 1 . 1 . . . . . . . . . . . . . . . . . . . . . . . Fabricator Hacks . | . . . . . . . . . . . . . . . . . . . . . . . . . . . . . Repair Station Hacks 5 | . . . . . . . . 2 . . . . . 1 . . . . . . 2 . . . . . . . Scan Component 2 | . . . . . . . . 1 . . . . . . . . . . . . 1 . . . . . . . Repair 2 | . . . . . . . . 1 . . . . . . . . . . . . 1 . . . . . . . Refit 1 | . . . . . . . . . . . . . . 1 . . . . . . . . . . . . . . Recycling Unit Hacks . | . . . . . . . . . . . . . . . . . . . . . . . . . . . . . Scanalyzer 5 | . . . . . . . . 2 . . . . . 1 . 2 . . . . . . . . . . . . Insert Component 1 | . . . . . . . . 1 . . . . . . . . . . . . . . . . . . . . Analyze 1 | . . . . . . . . 1 . . . . . . . . . . . . . . . . . . . . Retrieve Study 3 | . . . . . . . . . . . . . . 1 . 2 . . . . . . . . . . . . Garrison Access Hacks . | . . . . . . . . . . . . . . . . . . . . . . . . . . . . . Unauthorized Hacks 33 | . . . . . . 7 . 7 . . . . . 3 . 2 . . . . 7 . . . . 3 1 3 Terminals 4 | . . . . . . 1 . . . . . . . 1 . . . . . . . . . . . . . 2 Assimilate 2 | . . . . . . 1 . . . . . . . 1 . . . . . . . . . . . . . . Botnet 2 | . . . . . . . . . . . . . . . . . . . . . . . . . . . . 2 Fabricators . | . . . . . . . . . . . . . . . . . . . . . . . . . . . . . Repair Stations 4 | . . . . . . . . 1 . . . . . . . 1 . . . . 1 . . . . . 1 . Patch 4 | . . . . . . . . 1 . . . . . . . 1 . . . . 1 . . . . . 1 . Recycling Units 25 | . . . . . . 6 . 6 . . . . . 2 . 1 . . . . 6 . . . . 3 . 1 Fedlink 25 | . . . . . . 6 . 6 . . . . . 2 . 1 . . . . 6 . . . . 3 . 1 Scanalyzers . | . . . . . . . . . . . . . . . . . . . . . . . . . . . . . Garrison Access . | . . . . . . . . . . . . . . . . . . . . . . . . . . . . . Data Cores Recovered 1 | . . . . . . . . 1 . . . . . . . . . . . . . . . . . . . . Used 1 | . . . . . . . . 1 . . . . . . . . . . . . . . . . . . . . Hacking Detections 31 | . . . . . . 3 . 6 . . . . . 8 . 1 . . . . 4 . . . . 2 2 5 Full Trace Events 12 | . . . . . . . . 3 . . . . . 4 . 2 . . . . . . . . . . . 3 Feedback Events . | . . . . . . . . . . . . . . . . . . . . . . . . . . . . . Feedback Blocked . | . . . . . . . . . . . . . . . . . . . . . . . . . . . . . Robot Schematics Acquired . | . . . . . . . . . . . . . . . . . . . . . . . . . . . . . Robots Built . | . . . . . . . . . . . . . . . . . . . . . . . . . . . . . Authchips . | . . . . . . . . . . . . . . . . . . . . . . . . . . . . . Time . | . . . . . . . . . . . . . . . . . . . . . . . . . . . . . Total Robot Build Rating . | . . . . . . . . . . . . . . . . . . . . . . . . . . . . . Part Schematics Acquired 5 | . . . . . . . . 1 . . . . . . . . . . 4 . . . . . . . . . Parts Built . | . . . . . . . . . . . . . . . . . . . . . . . . . . . . . Authchips . | . . . . . . . . . . . . . . . . . . . . . . . . . . . . . Time . | . . . . . . . . . . . . . . . . . . . . . . . . . . . . . Total Part Build Rating . | . . . . . . . . . . . . . . . . . . . . . . . . . . . . . Part Studies Acquired 3 | . . . . . . . . . . . . . . 1 . 2 . . . . . . . . . . . . Parts Repaired 2 | . . . . . . . . 1 . . . . . . . . . . . . 1 . . . . . . . Time 113 | . . . . . . . . 78 . . . . . . . . . . . . 35 . . . . . . . Parts Recycled . | . . . . . . . . . . . . . . . . . . . . . . . . . . . . . Recycled Matter . | . . . . . . . . . . . . . . . . . . . . . . . . . . . . . Retrieved Matter . | . . . . . . . . . . . . . . . . . . . . . . . . . . . . . Retrieved Components . | . . . . . . . . . . . . . . . . . . . . . . . . . . . . . Parts Scanalyzed 1 | . . . . . . . . 1 . . . . . . . . . . . . . . . . . . . . Part Schematics Acquired 1 | . . . . . . . . 1 . . . . . . . . . . . . . . . . . . . . Parts Damaged . | . . . . . . . . . . . . . . . . . . . . . . . . . . . . . Bothacking | -11 -10 -10 -10 -9 -9 -6 -6 -6 -6 -6 -6 -6 -5 -5 -5 -5 -5 -5 -5 -4 -4 -4 -4 -4 -3 -3 -3 -3 ------------ Run | Yrd Mat Min Sub Rec Scr Fac Was Fac Low Low Zio Dee Pro Fac Was Fac Upp Upp Zhi Pro Fac Upp Upp War Pro Res Qua Frg Used RIF Installer . | . . . . . . . . . . . . . . . . . . . . . . . . . . . . . Robots Hacked 1 | . . . . . . . . . . . . . . . . . . . . . 1 . . . . . . . Non-combat 1 | . . . . . . . . . . . . . . . . . . . . . 1 . . . . . . . Combat . | . . . . . . . . . . . . . . . . . . . . . . . . . . . . . Robot Hacks Applied 1 | . . . . . . . . . . . . . . . . . . . . . 1 . . . . . . . find_chute 1 | . . . . . . . . . . . . . . . . . . . . . 1 . . . . . . . Relay Couplers Released 2 | . . . . . . . . . . . . . . . . . . . . . . . . . . . . 2 Machine Destruction 2 | . . . . . . . . . . . . . . . . . . . . . . . . . . . . 2 Fabnet Peak Effective % . | . . . . . . . . . . . . . . . . . . . . . . . . . . . . . Robots Rewired . | . . . . . . . . . . . . . . . . . . . . . . . . . . . . . Allies Hacked . | . . . . . . . . . . . . . . . . . . . . . . . . . . . . . Hacks Repelled . | . . . . . . . . . . . . . . . . . . . . . . . . . . . . . Allies | -11 -10 -10 -10 -9 -9 -6 -6 -6 -6 -6 -6 -6 -5 -5 -5 -5 -5 -5 -5 -4 -4 -4 -4 -4 -3 -3 -3 -3 -------- Run | Yrd Mat Min Sub Rec Scr Fac Was Fac Low Low Zio Dee Pro Fac Was Fac Upp Upp Zhi Pro Fac Upp Upp War Pro Res Qua Frg Total Allies 5 | . . . . . . 1 . . . . 4 . . . . . . . . . . . . . . . . . Largest Group 4 | . . . . . . 1 . . . . 4 4 . . . . . . . . . . . . . . . . Highest-Rated Group 112 | . . . . . . 10 . . . . 112 112 . . . . . . . . . . . . . . . . Highest-Rated Ally 31 | . . . . . . 10 . . . . 31 31 . . . . . . . . . . . . . . . . Total Orders . | . . . . . . . . . . . . . . . . . . . . . . . . . . . . . Ally Attacks 10 | . . . . . . . . . . . . 10 . . . . . . . . . . . . . . . . Total Damage 145 | . . . . . . . . . . . . 145 . . . . . . . . . . . . . . . . Kills 1 | . . . . . . . . . . . . 1 . . . . . . . . . . . . . . . . Allies Corrupted . | . . . . . . . . . . . . . . . . . . . . . . . . . . . . . Allies Melted 3 | . . . . . . . . . . . . . . . . . . . . . . . . 1 . . . 2 Intel | -11 -10 -10 -10 -9 -9 -6 -6 -6 -6 -6 -6 -6 -5 -5 -5 -5 -5 -5 -5 -4 -4 -4 -4 -4 -3 -3 -3 -3 ------- Run | Yrd Mat Min Sub Rec Scr Fac Was Fac Low Low Zio Dee Pro Fac Was Fac Upp Upp Zhi Pro Fac Upp Upp War Pro Res Qua Frg Active Infowar (turns) 8824 | . . . . . . 220 30 1026 234 372 442 384 114 1378 87 315 146 274 109 115 654 98 158 979 160 157 177 1195 Optics 8089 | . . . . . . 3 30 1026 234 372 442 384 114 1378 87 315 146 274 109 115 645 98 158 979 160 157 177 686 Sensors 4609 | . . . . . . 187 . 526 232 372 442 384 114 387 . 131 146 274 62 115 654 98 33 . . . 156 296 A.S.S. 509 | . . . . . . . . . . . . . . . . . . . . . . . . . . . . 509 Seismic 32 | . . . . . . 32 . . . . . . . . . . . . . . . . . . . . . . Jamming 1722 | . . . . . . . . . . . . . . 3 . 24 . . . . 644 98 158 543 . . 1 251 Robot Analysis Total 4 | . . . . . . . . . . . . . . . . . . . 4 . . . . . . . . . Derelict Logs Recovered 22 | . . 3 3 . 3 . . . 2 2 1 . 1 . . . 1 2 . 2 . 1 1 . . . . . Drone Launches . | . . . . . . . . . . . . . . . . . . . . . . . . . . . . . Drone Recoveries . | . . . . . . . . . . . . . . . . . . . . . . . . . . . . . Exploration | -11 -10 -10 -10 -9 -9 -6 -6 -6 -6 -6 -6 -6 -5 -5 -5 -5 -5 -5 -5 -4 -4 -4 -4 -4 -3 -3 -3 -3 ------------- Run | Yrd Mat Min Sub Rec Scr Fac Was Fac Low Low Zio Dee Pro Fac Was Fac Upp Upp Zhi Pro Fac Upp Upp War Pro Res Qua Frg Turns Passed 15966 | 69 255 855 3771 78 1534 343 66 1043 234 372 442 384 114 1378 87 315 146 274 109 115 654 98 158 979 160 157 177 1599 Spaces Moved 19007 | 40 144 474 1590 61 1176 758 106 1605 569 434 886 639 297 1266 185 709 336 608 205 327 1326 276 395 1839 367 420 628 1341 Core 4 | 4 . . . . . . . . . . . . . . . . . . . . . . . . . . . . Treads 1906 | 36 144 474 1217 . . . . . . . . . . 22 . . . . . . . . . . . . . 13 Legs 500 | . . . . . . . . . . . . . . 19 . . . . . . . . . . . . . 481 Wheels 1817 | . . . 373 61 1176 . . . . . . . . 207 . . . . . . . . . . . . . . Hover 9099 | . . . . . . . . . . . . . . 631 185 709 336 608 205 327 1326 276 395 1839 367 420 628 847 Flight 5681 | . . . . . . 758 106 1605 569 434 886 639 297 387 . . . . . . . . . . . . . . Fastest Speed 17 | 50 160 160 110 130 120 34 34 35 35 35 35 35 35 28 28 17 35 35 30 30 30 30 30 30 31 20 17 27 Average Speed 67 | 149 161 160 223 130 129 35 51 41 35 85 39 35 35 69 28 32 35 35 38 30 30 30 30 31 34 20 19 94 Slowest Speed 480 | 160 240 160 260 130 130 94 80 101 101 101 101 101 35 480 28 42 35 35 62 30 92 30 31 92 89 35 34 260 Overloaded Moves 79 | . . . . . . . . . . . . . . . . 27 . . . . . . . . . . 43 9 Propulsion Burnouts . | . . . . . . . . . . . . . . . . . . . . . . . . . . . . . Robots Hopped 8 | . . . . . . 5 . 2 . . . . . 1 . . . . . . . . . . . . . . Potential Cave-ins 28 | . . . . . . . . 4 . . . 3 . . . . . . . . . . . . . . . 21 Cave-ins Triggered 2 | . . . . . . . . 1 . . . . . . . . . . . . . . . . . . . 1 Teleports 1 | . . . . . . . . . . . . . . . . . . . . . . . . . . . . 1 Exploration Rate (%) 55 | 3 24 99 86 17 64 26 78 34 74 68 83 79 56 29 84 26 61 67 61 59 30 56 44 89 61 19 71 49 Regions Visited 28 Branch Regions 19 Pre-discovered Areas 12 | . . 1 2 . 1 1 . . 1 . 1 . . . . . . . 3 1 . . . 1 . . . . Known Exits Taken 14 | . . . . . . . . 1 . . 1 . . . . 1 1 1 1 1 1 1 1 1 1 1 1 . Unknown Exits Taken 10 | 1 1 1 1 1 1 . . . 1 1 . 1 1 . . . . . . . . . . . . . . . Scrap Searched 27 | . . 1 9 . 3 . . . 2 3 3 . 1 . . . 1 1 . . . 2 . . 1 . . . Spaces Dug 214 | . . . . . . 8 . 25 31 . . 4 24 15 . 1 . 26 . . 20 . . 1 . 4 4 51 Terrain Destroyed 2263 | . . . 40 . . 8 . 111 175 . . 13 29 244 10 92 95 156 . 89 156 68 166 358 241 76 4 132 Melee 65 | . . . . . . 8 . 25 2 . . 3 1 10 . . . . . . . . . 1 . 4 4 7 Projectile 212 | . . . 5 . . . . 6 . . . 10 . 29 10 12 7 2 . . 43 . . . . . . 88 AOE 1986 | . . . 35 . . . . 80 173 . . . 28 205 . 80 88 154 . 89 113 68 166 357 241 72 . 37 Terrain Rammed . | . . . . . . . . . . . . . . . . . . . . . . . . . . . . . Walls Destroyed . | . . . . . . . . . . . . . . . . . . . . . . . . . . . . . Machines Disabled . | . . . . . . . . . . . . . . . . . . . . . . . . . . . . . Actions | -11 -10 -10 -10 -9 -9 -6 -6 -6 -6 -6 -6 -6 -5 -5 -5 -5 -5 -5 -5 -4 -4 -4 -4 -4 -3 -3 -3 -3 --------- Run | Yrd Mat Min Sub Rec Scr Fac Was Fac Low Low Zio Dee Pro Fac Was Fac Upp Upp Zhi Pro Fac Upp Upp War Pro Res Qua Frg Total 21073 | 47 162 516 1701 60 1188 818 117 1889 585 436 968 753 301 1567 197 757 349 650 237 334 1505 284 412 2191 378 467 661 1543 Wait 673 | . . 7 . . . . 5 150 . . 65 14 . 30 . . . 28 4 . 73 . . 273 . 12 . 12 Move 18964 | 39 143 473 1589 60 1175 749 105 1599 568 433 885 638 296 1264 184 708 335 607 204 326 1325 275 394 1838 366 419 627 1340 Hop 7 | . . . . . . 4 . 2 . . . . . 1 . . . . . . . . . . . . . . Pick Up 164 | 2 8 4 16 . 6 5 2 14 . 1 1 6 . 29 . 5 1 1 7 . 6 2 1 8 . 4 5 30 Fast Attach 174 | 6 10 . 3 . . 13 1 12 1 . 4 15 . 44 1 6 1 . 7 . 7 1 2 11 . 3 2 24 Attach 113 | . . 1 9 . 1 10 1 13 3 1 2 4 1 28 . . . 1 3 . 5 . 1 4 1 5 . 19 Detach 63 | . . . . . . 11 . 12 3 . 1 5 1 14 . . . . . . 1 . . 1 . 4 . 10 Swap 62 | . . 1 9 . . 2 . 3 . . . 3 . 7 . 10 . . . . 5 1 2 8 1 1 2 7 Drop 209 | . 1 . 14 . 6 12 3 21 . 1 4 20 . 37 1 10 1 1 12 . 11 2 1 20 . 4 4 23 Fire 440 | . . 30 60 . . . . 13 8 . 6 31 2 77 11 16 11 12 . 8 72 3 7 17 8 4 . 44 Melee 175 | . . . . . . 12 . 48 2 . . 15 1 35 . . . . . . . . 4 3 2 10 10 33 Ram . | . . . . . . . . . . . . . . . . . . . . . . . . . . . . . Kick . | . . . . . . . . . . . . . . . . . . . . . . . . . . . . . Crush . | . . . . . . . . . . . . . . . . . . . . . . . . . . . . . Escape Stasis 13 | . . . . . . . . 1 . . . . . . . . . . . . . . . . . . 11 1 Rewire . | . . . . . . . . . . . . . . . . . . . . . . . . . . . . . Trap 3 | . . . 1 . . . . . . . . 2 . . . . . . . . . . . . . . . . Miscellaneous 13 | . . . . . . . . 1 . . . . . 1 . 2 . . . . . . . 8 . 1 . . Route ------- -11/Scrapyard -10/Materials -10/Mines (discovered 3 exits: [*Mat x2] / *Sub) -10/Subcaves (discovered 3 exits: [*Mat x2] / [*Rec]) -9/Recycling -9/Scraptown (discovered 2 exits: *Fac x2) -6/Factory (discovered 2 exits: *Fac / *Low) -6/Waste -6/Factory (discovered 3 exits: *Fac / *Low x2) -6/Lower Caves -6/Lower Caves (discovered 2 exits: *Fac / [*Zio]) -6/Zion (discovered 2 exits: *Dee / [*Pro]) -6/Deep Caves -5/Proximity Caves -5/Factory (discovered 2 exits: Upp x2) -5/Waste -5/Factory (discovered 3 exits: *Fac / *Upp x2) -5/Upper Caves -5/Upper Caves (discovered 2 exits: *Fac / *Zhi) -5/Zhirov -4/Proximity Caves -4/Factory (discovered 3 exits: *Res x2 / *Upp) -4/Upper Caves -4/Upper Caves -4/Warlord -3/Proximity Caves -3/Research (discovered 3 exits: [*Res] / *Qua x2) -3/Quarantine (discovered 2 exits: [*Sec] / *Frg) -3/Protoforge History --------- Turn | Location | Event 7 | -11/Scrapyard | Discovered new exit (range 13) 70 | -11/Scrapyard | Entered Materials 131 | -10/Materials | Discovered new exit (range 13) 316 | -10/Materials | Build established: Mutant 325 | -10/Materials | Entered Mines 332 | -10/Mines | Met a Derelict bent on vengeance 608 | -10/Mines | Discovered new exit (range 11) 964 | -10/Mines | Learned 8 Materials zone layouts 1017 | -10/Mines | Discovered new exit (range 14) 1043 | -10/Mines | Learned 2 Materials zone layouts 1046 | -10/Mines | Received a Rocket Launcher from a helpful Derelict 1051 | -10/Mines | Discovered new exit (range 6) 1180 | -10/Mines | Entered Subcaves 1227 | -10/Subcaves | Shifting Twisted Machinery released Battle Rifle 1235 | -10/Subcaves | Shifting Twisted Machinery released Flamer 1245 | -10/Subcaves | Learned Materials garrison access intel 1307 | -10/Subcaves | Lost 3 parts (2n1u) 1460 | -10/Subcaves | Ambushed by Subdwellers from Twisted Machinery 1625 | -10/Subcaves | Visited Clippyterm 1628 | -10/Subcaves | Learned location of Extension (-4) 1628 | -10/Subcaves | Learned Factory trap positions 1648 | -10/Subcaves | Discovered new exit (range 6) 2019 | -10/Subcaves | Discovered new exit (range 13) 2022 | -10/Subcaves | Build established: Derelict-Mutant 2206 | -10/Subcaves | Learned Materials trap positions 3063 | -10/Subcaves | Ambushed by Subdweller buried in earth 3120 | -10/Subcaves | Lost 3 parts (1u2w) 3287 | -10/Subcaves | A swath of the cavern ceiling suddenly collapsed 3342 | -10/Subcaves | Build established: Mutant 3412 | -10/Subcaves | Shifting Twisted Machinery released Sub. Beam Cannon 3433 | -10/Subcaves | Shifting Twisted Machinery released Sub. Monowheel 3743 | -10/Subcaves | Learned location of Mines (-8) 4045 | -10/Subcaves | Visited 4L-MR0's lab 4069 | -10/Subcaves | Found Flightbrick 4251 | -10/Subcaves | Shifting Twisted Machinery released Slug Cannon 4923 | -10/Subcaves | Discovered new exit (range 12) 4926 | -10/Subcaves | Core integrity fell below 50% 4951 | -10/Subcaves | Entered Recycling 4997 | -9/Recycling | Scanned before Scraplab entrance 5016 | -9/Recycling | Entered Scraplab 5027 | -9/Recycling | Discovered new exit (range 3) 5029 | -9/Recycling | Entered Scraptown 5133 | -9/Scraptown | Visited UFD Registry 5133 | -9/Scraptown | Registered with UFD as "Cryogunner" 5175 | -9/Scraptown | Visited Research Penetration Think Tank 5197 | -9/Scraptown | Visited Chapter 10 5213 | -9/Scraptown | Visited Science Guys 5256 | -9/Scraptown | Visited Scrap Suit Storage 5274 | -9/Scraptown | Visited DA-N13 Charitable Foundation 5286 | -9/Scraptown | Visited Modified Component R&D 5344 | -9/Scraptown | Visited Abandonware Association 5370 | -9/Scraptown | Visited Junk Cannon Lab 5378 | -9/Scraptown | Found Prototype Special Weapon 5419 | -9/Scraptown | Learned abandonware demo "TRNCOAT.EXE" 5479 | -9/Scraptown | Found DCF Scrap (27 items) 5693 | -9/Scraptown | Scanned Subdweller tech in exchange for log data 5697 | -9/Scraptown | Learned 12 Factory zone layouts 5700 | -9/Scraptown | Learned location of Zion (-6) 5701 | -9/Scraptown | Learned Research emergency access door positions 5734 | -9/Scraptown | Discovered new exit (range 11) 5851 | -9/Scraptown | Visited Junk Repository 5974 | -9/Scraptown | Identified Junk Cannon 6480 | -9/Scraptown | Met Optimus 6480 | -9/Scraptown | Accepted into 0bPrime 6558 | -9/Scraptown | Discovered new exit (range 5) 6563 | -9/Scraptown | Entered Factory 6563 | -6/Factory | Evolved 8 slots: Propulsion x4, Utility x4 6564 | -6/Factory | Attached Flightbrick, gained temporary slots: Utility x3 6565 | -6/Factory | Loaded intel: 87 trap records 6640 | -6/Factory | Loaded intel: 8 recycling unit locations 6656 | -6/Factory | Found Prototype Launcher 6656 | -6/Factory | Identified Scatter Rocket Array 6659 | -6/Factory | Found Scatter Rocket Array 6661 | -6/Factory | Found Scatter Rocket Array 6712 | -6/Factory | Learned location of Protoforge (-3) 6744 | -6/Factory | Discovered new exit (range 6) 6771 | -6/Factory | Discovered new exit (range 14) 6835 | -6/Factory | Found Prototype Launcher 6835 | -6/Factory | Identified Rocket Array 6904 | -6/Factory | Spotted B-75 Beast 6906 | -6/Factory | Manually triggered Chute Trap 6906 | -6/Factory | Sucked down chute 6906 | -6/Factory | Entered Waste 6913 | -6/Waste | Spotted C-40 Crusher 6913 | -6/Waste | Spotted C-40 Crusher 6913 | -6/Waste | Spotted C-40 Crusher 6919 | -6/Waste | Crushed by Compactor (1 part destroyed) 6923 | -6/Waste | Spotted C-40 Crusher 6926 | -6/Waste | Spotted C-40 Crusher 6927 | -6/Waste | Spotted C-40 Crusher 6953 | -6/Waste | Discovered new exit (range 13) 6972 | -6/Waste | Entered Factory 7305 | -6/Factory | Repaired Broken Field Propulsion Drive 7351 | -6/Factory | Identified exit to Lower Caves 7382 | -6/Factory | Discovered new exit (range 7) 7408 | -6/Factory | Loaded intel: 8 recycling unit locations 7604 | -6/Factory | Build established: Scout 7761 | -6/Factory | Found Launcher Loader 7884 | -6/Factory | Crushed by falling debris 8015 | -6/Factory | Entered Lower Caves 8078 | -6/Lower Caves | Encountered a Warlord checkpoint 8108 | -6/Lower Caves | Entered a destroyed Warlord outpost 8182 | -6/Lower Caves | Build established: Mutant 8223 | -6/Lower Caves | Discovered new exit (range 17) 8233 | -6/Lower Caves | Learned 4 Factory zone layouts 8249 | -6/Lower Caves | Entered another Lower Caves area 8262 | -6/Lower Caves | Discovered new exit (range 15) 8285 | -6/Lower Caves | Learned Factory garrison access intel 8597 | -6/Lower Caves | Learned Factory stockpile data 8609 | -6/Lower Caves | Discovered new exit (range 9) 8621 | -6/Lower Caves | Entered Zion 8659 | -6/Zion | Discovered new exit (range 19) 8730 | -6/Zion | Gained Derelict followers 8767 | -6/Zion | Learned location of Warlord (-4) 8793 | -6/Zion | Identified exit to Deep Caves 8858 | -6/Zion | Found CR-A16's Pointy Stick 9006 | -6/Zion | Saw the warning signs outside the Deep Caves entrance 9063 | -6/Zion | Entered Deep Caves 9063 | -6/Deep Caves | Accompanied by 4 allies 9086 | -6/Deep Caves | Build established: Hacker-Mutant 9126 | -6/Deep Caves | Attacked by Z-Imprinter 9127 | -6/Deep Caves | Attached CPS modules to Z-Imprinter. 9173 | -6/Deep Caves | Lost 4 allies 9176 | -6/Deep Caves | Destroyed Z-Imprinter 9189 | -6/Deep Caves | Found Prototype Protection 9189 | -6/Deep Caves | Identified Zio. Weapon Casing 9230 | -6/Deep Caves | Found Prototype Device 9230 | -6/Deep Caves | Identified Zio. Metafield Generator 9320 | -6/Deep Caves | Z-Facility disabled 9397 | -6/Deep Caves | Spotted AG-60977 9409 | -6/Deep Caves | Discovered new exit (range 7) 9437 | -6/Deep Caves | Found Surveybot 24 Chip 9447 | -6/Deep Caves | Entered Proximity Caves 9497 | -5/Proximity Caves | Learned Factory garrison access intel 9557 | -5/Proximity Caves | Discovered new exit (range 8) 9561 | -5/Proximity Caves | Entered Factory 9561 | -5/Factory | Evolved 2 slots: Power x1, Propulsion x1 9564 | -5/Factory | Loaded intel: 4 garrison access locations 9624 | -5/Factory | Loaded intel: 8 recycling unit locations 9957 | -5/Factory | Build established: Mutant 9993 | -5/Factory | Lost 7 parts (3n3u1w) 10264 | -5/Factory | Build established: Scavenger-Mutant 10288 | -5/Factory | Lost 5 parts (3n2u) 10311 | -5/Factory | Cargo convoy interrupted 10447 | -5/Factory | Lost 3 parts (1n2w) 10547 | -5/Factory | Core integrity fell below 50% 10594 | -5/Factory | Lost 10 parts (1p6n3w) 10616 | -5/Factory | Found Prototype Launcher 10616 | -5/Factory | Identified Tactical Quantum Warhead 10639 | -5/Factory | Found Prototype Device 10639 | -5/Factory | Identified Exp. Transmission Jammer 10661 | -5/Factory | Found Tactical Quantum Warhead 10723 | -5/Factory | Identified exit to Upper Caves 10939 | -5/Factory | Sucked down chute 10939 | -5/Factory | Entered Waste 10950 | -5/Waste | Spotted C-40 Crusher 10954 | -5/Waste | EMP discharged 10954 | -5/Waste | System corruption reached 10% 10955 | -5/Waste | Spotted C-40 Crusher 10955 | -5/Waste | Spotted C-40 Crusher 10956 | -5/Waste | Spotted C-40 Crusher 10962 | -5/Waste | Spotted C-40 Crusher 10984 | -5/Waste | Spotted C-40 Crusher 10997 | -5/Waste | Destroyed C-40 Crusher 11024 | -5/Waste | Discovered new exit (range 10) 11026 | -5/Waste | Identified exit to Factory 11026 | -5/Waste | Entered Factory 11027 | -5/Factory | Loaded intel: 4 garrison access locations 11098 | -5/Factory | Discovered new exit (range 21) 11108 | -5/Factory | Identified exit to Factory 11179 | -5/Factory | Loaded intel: 8 recycling unit locations 11341 | -5/Factory | Entered Upper Caves 11438 | -5/Upper Caves | Attracted the attention of an 0b10 checkpoint 11466 | -5/Upper Caves | Encountered a Warlord checkpoint 11477 | -5/Upper Caves | Discovered new exit (range 9) 11480 | -5/Upper Caves | Identified exit to Upper Caves 11487 | -5/Upper Caves | Entered another Upper Caves area 11505 | -5/Upper Caves | Learned location of 1 exit from Factory 11509 | -5/Upper Caves | Discovered exit to Factory (range 9) 11514 | -5/Upper Caves | Build established: Scout 11538 | -5/Upper Caves | Encountered a Warlord checkpoint 11566 | -5/Upper Caves | Found Alien Artifact 11685 | -5/Upper Caves | Spotted B-75 Beast 11720 | -5/Upper Caves | Learned location of 1 exit from Factory 11758 | -5/Upper Caves | Discovered new exit (range 8) 11761 | -5/Upper Caves | Identified exit to Zhirov 11761 | -5/Upper Caves | Entered Zhirov 11763 | -5/Zhirov | Discovered new exit (range 3) 11769 | -5/Zhirov | Met Zhirov 11779 | -5/Zhirov | Learned location of Quarantine (-3) 11779 | -5/Zhirov | Learned location of Testing (-2) 11779 | -5/Zhirov | Learned location of Command (-1) 11781 | -5/Zhirov | Zhirov requested help retrieving the SGEMP Prototype 11790 | -5/Zhirov | Found Alien Artifact 11790 | -5/Zhirov | Identified Integrated Reactor 11790 | -5/Zhirov | Installed Integrated Reactor, increased core energy generation (+10) 11828 | -5/Zhirov | Found Alien Artifact 11869 | -5/Zhirov | Identified exit to Proximity Caves 11870 | -5/Zhirov | Entered Proximity Caves 11889 | -4/Proximity Caves | Learned location of 1 exit from Research 11943 | -4/Proximity Caves | Spotter reported a threat 11959 | -4/Proximity Caves | Spotted B-86 Titan 11982 | -4/Proximity Caves | Discovered exit to Factory (range 13) 11985 | -4/Proximity Caves | Entered Factory 11985 | -4/Factory | Evolved 2 slots: Utility x2 11986 | -4/Factory | Identified exit to Upper Caves 11986 | -4/Factory | Identified exit to Research 12066 | -4/Factory | Repaired Rocket Array 12075 | -4/Factory | Loaded intel: 8 recycling unit locations 12364 | -4/Factory | Found Gamma Bomb Array 12392 | -4/Factory | Discovered exit to Research (range 16) 12639 | -4/Factory | Entered Upper Caves 12688 | -4/Upper Caves | Found DCF Scrap (15 items) 12733 | -4/Upper Caves | Discovered new exit (range 14) 12737 | -4/Upper Caves | Identified exit to Upper Caves 12737 | -4/Upper Caves | Entered another Upper Caves area 12738 | -4/Upper Caves | Identified exit to Warlord 12784 | -4/Upper Caves | Found Corrupted Imp. Powered Armor 12821 | -4/Upper Caves | Learned Research stockpile data 12895 | -4/Upper Caves | Entered Warlord 12907 | -4/Warlord | System corruption cleaned by Quarantine Array 13040 | -4/Warlord | Build established: Sprinter 13063 | -4/Warlord | Learned 4 Research zone layouts 13063 | -4/Warlord | Learned 4 Research zone layouts 13063 | -4/Warlord | Learned Quarantine security intel 13063 | -4/Warlord | Learned Armory fabricator intel 13099 | -4/Warlord | Warlord's base attacked by MAIN.C 13338 | -4/Warlord | Rebuked by Warlord 13359 | -4/Warlord | Found Prototype Energy Gun 13359 | -4/Warlord | Identified Vortex Rail 13414 | -4/Warlord | Found Prototype Reactor 13414 | -4/Warlord | Identified Vortex Chain Reactor 13426 | -4/Warlord | Found Prototype Hackware 13426 | -4/Warlord | Identified Ghost Barrier 13429 | -4/Warlord | Found Prototype Processor 13429 | -4/Warlord | Identified Exp. Core Analyzer 13449 | -4/Warlord | Warlord forces counterattacked 13517 | -4/Warlord | Spotted Striker 13519 | -4/Warlord | Spotted Executioner 13546 | -4/Warlord | Spotted Executioner 13562 | -4/Warlord | Spotted Striker 13586 | -4/Warlord | Lost 18 allies 13591 | -4/Warlord | Destroyed 11 combat bots 13617 | -4/Warlord | Discovered new exit (range 20) 13774 | -4/Warlord | Warlord base infiltrated, sounded retreat 13785 | -4/Warlord | Spotted Striker 13813 | -4/Warlord | Spotted B-86 Titan 13841 | -4/Warlord | Spotted Executioner 13841 | -4/Warlord | Spotted Executioner 13851 | -4/Warlord | Destroyed Executioner 13859 | -4/Warlord | Attacked by Warlord forces 13860 | -4/Warlord | Spotted 45-U9Q(B) 13873 | -4/Warlord | Identified exit to Proximity Caves 13874 | -4/Warlord | Entered Proximity Caves 14023 | -3/Proximity Caves | Discovered exit to Research (range 14) 14034 | -3/Proximity Caves | Entered Research 14034 | -3/Research | Evolved 2 slots: Propulsion x1, Utility x1 14035 | -3/Research | Identified exit to Quarantine 14084 | -3/Research | Allied Derelicts emerged from ambush trap array 14089 | -3/Research | Loaded intel: 5 recycling unit locations 14173 | -3/Research | Discovered new exit (range 21) 14191 | -3/Research | Entered Quarantine 14229 | -3/Quarantine | Found Alien Energy Cannon 14241 | -3/Quarantine | Found Alien Artifact 14251 | -3/Quarantine | Found Alien Slashing Weapon 14251 | -3/Quarantine | Identified Sigix Broadsword 14353 | -3/Quarantine | Spotted Fortress 14366 | -3/Quarantine | Discovered new exit (range 7) 14366 | -3/Quarantine | Discovered new exit (range 6) 14366 | -3/Quarantine | Identified exit to Protoforge 14368 | -3/Quarantine | Entered Protoforge 14390 | -3/Protoforge | Superfortress began startup sequence 14518 | -3/Protoforge | Spotted AP7-3 14539 | -3/Protoforge | Spotted Hotshot 14539 | -3/Protoforge | Spotted Hotshot 14544 | -3/Protoforge | Spotted B-86 Titan 14578 | -3/Protoforge | Identified Core Cannon 14611 | -3/Protoforge | Additional patrols dispatched to research labs 14619 | -3/Protoforge | Found Prototype Storage 14619 | -3/Protoforge | Identified Cep. Chromion Battery 14631 | -3/Protoforge | Lost 4 parts (1p1n2w) 14640 | -3/Protoforge | Found Prototype Ballistic Gun 14640 | -3/Protoforge | Identified Cep. XC Strikerail 14642 | -3/Protoforge | Found Cep. XC Strikerail 14686 | -3/Protoforge | Crushed by falling debris 14687 | -3/Protoforge | System corruption reached 10% 14714 | -3/Protoforge | Spotted EXE-6 14716 | -3/Protoforge | Spotted EXE-6 14726 | -3/Protoforge | Core integrity fell below 50% 14752 | -3/Protoforge | UFD initiated attack on Protoforge (Readiness: Maximal) 14752 | -3/Protoforge | Loaded intel: 3 recycling unit locations 14788 | -3/Protoforge | Optimus greeted in Protoforge 14795 | -3/Protoforge | Lost 12 parts (1p6n4u1w) 14819 | -3/Protoforge | Spotted SKR-2 14820 | -3/Protoforge | Spotted SKR-2 14858 | -3/Protoforge | Lost 3 allies 14896 | -3/Protoforge | Spotted EXE-6 14897 | -3/Protoforge | Spotted EXE-6 14899 | -3/Protoforge | Met 7R-MNS 14924 | -3/Protoforge | Found Cep. XC Strikerail 14927 | -3/Protoforge | Found Cep. XC Strikerail 14929 | -3/Protoforge | Found Prototype Device 14931 | -3/Protoforge | Found Exp. Core Analyzer 14962 | -3/Protoforge | Lost 3 allies 14989 | -3/Protoforge | Spotted Striker 14992 | -3/Protoforge | Spotted Striker 15036 | -3/Protoforge | Spotted AP7-3 15048 | -3/Protoforge | Spotted Striker 15049 | -3/Protoforge | Lost 3 allies 15051 | -3/Protoforge | Spotted Striker 15068 | -3/Protoforge | Destroyed Striker 15085 | -3/Protoforge | Lost 4 parts (1n3u) 15117 | -3/Protoforge | Lost 4 allies 15187 | -3/Protoforge | UFD reported confirmed Drillbomb installation 15224 | -3/Protoforge | Build established: Scavenger-Mutant 15378 | -3/Protoforge | UFD reported confirmed Drillbomb installation 15458 | -3/Protoforge | Found Prototype Device 15458 | -3/Protoforge | Identified Exp. Active Sensor Suite 15514 | -3/Protoforge | Found Scrap Suit 15575 | -3/Protoforge | Spotted Striker 15578 | -3/Protoforge | Spotted Striker 15643 | -3/Protoforge | Core integrity fell below 20% 15739 | -3/Protoforge | Identified Exp. Kinecellerator 15739 | -3/Protoforge | Identified Transdimensional Reconstructor 15739 | -3/Protoforge | Forge Plexus network access discovered 15748 | -3/Protoforge | Lost 6 allies 15790 | -3/Protoforge | Initialized slip node 15793 | -3/Protoforge | Identified Subatomic Replicator 15793 | -3/Protoforge | Used Subatomic Replicator to create Alien Artifact 15905 | -3/Protoforge | Build established: Scavenger-Assassin 15929 | -3/Protoforge | Spotted Striker 15933 | -3/Protoforge | Found Cep. Core Shell 15935 | -3/Protoforge | Found Cep. Core Shell 15937 | -3/Protoforge | Found Cep. Core Shell 15940 | -3/Protoforge | Found Cep. Core Shell 15965 | -3/Protoforge | Identified Supercharged TR 15965 | -3/Protoforge | Warped through subspace to slip node 15967 | -3/Protoforge | Core destroyed Last Messages --------------- 15966_ K,CD TVJUVQ:VOIGMY OV8C6W 15967_ Slug penetrates Superfortress. 15967_ HV Slug penetrates 03FBC-D. 15967_ HV Slug penetrates 03FBD-D. 15967_ 03FBD-D knocked back. 15967_ HV Slug penetrates 03FBD-D. 15967_ HV Slug penetrates Dimensional Slip Node. 15967_ HV Slug penetrates 03FBC-D. 15967_ 03FBC-D suffers critical hit (Destroy). 15967_ 03FBC-D knocked back. 15967_ HV Slug penetrates 03FBC-D. 15967_ HV Slug penetrates Forge Pylon. 15967_ HV Slug penetrates 03FBD-D. 15967_ 03FBD-D suffers critical hit (Destroy). 15967_ 03FBG-D suffers critical hit (Destroy). 15967_ Dimensional Slip Node implodes. 15967_ Railslug penetrates 03F25-K. 15967_ Striker destroyed. 15967_ Exp. VSS Leg destroyed. 15967_ Cep. Core Shell destroyed. Map ----- +----------------------------------------------------+ | """""""""""""""" % " #????????????????? | | """""""""""""""" %%% " #????????????????? | | """""""""""""""" %% % % #????????????????? | | """""""""""""""" % ##???????????????? | | """""""""""""""" %% % " #???????????????? | | """""""""""""""" " % "" "" #???????????????? | | """""""""""""""" " E " " ##???????????????? | | """""""""""""""% %" %"% " "#????????????????? | | """""""""""""""%SS" " #????????????????? | | """"""""""""""" SS""% """ #????????????????? | | """""""""""""" s "% " #????????????????? | | """"""""""""" "" % s "" #????????????????? | | """""""""""" " % %s" """" #????????????????? | | """"""""""" " " """ #????????????????? | | """""""""" "" " " "" #????????????????? | | """"""""" "" "" % "s"" #????????????????? | | """""" "" "" #????????????????? | | "" "" "" """ """ #????????????????? | | %" E"" "" "" """" #????????????????? | | ! " " EE"E A s " """" ###??????????????? | | """" s""" " "" s"" "A <<#??????????????? | | ""s"""""""""" "" SSs EE E&#?#????????????? | | % %sss j SS s <&# #????????????? | | %%" ss """ " " % ""E &&s#?????????????? | | % " "" "" " "" FFF && #?????????????? | | % """" " "" "s s @ FFF &&##?????????????? | | """% " " " "FFF ###??????????????? | | % % """" %" #????????????????? | | " % % " #????????????????? | | " """""""" """ % % #????????????????? | | """ #????????????????? | | " """""""" " " " """"#????????????????? | | ###################;;;###########????????????????? | | ??????????????#"" ""#??????????????????????? | | ????????????###" "###????????????????????? | | ????????????#"" ""#????????????????????? | | ????????????#"" ""#????????????????????? | | ????????????#"" ""#????????????????????? | | ????????????#"Y Y"#????????????????????? | | ????????????#" ""#????????????????????? | | ????????????# ""#????????????????????? | | ????????????#"" ""#????????????????????? | | ????????????###" "###????????????????????? | | ??????????????#"" ""#??????????????????????? | | ??????????????###"""Y"""###??????????????????????? | | ????????????????#"""""""#????????????????????????? | | ????????????????#########????????????????????????? | | ?????????????????????????????????????????????????? | | ?????????????????????????????????????????????????? | | ?????????????????????????????????????????????????? | +----------------------------------------------------+ Best States ------------- Heat Dissipation 80 Energy Generation 65 Energy Capacity 1725 Matter Stores 550 Matter Capacity 550 Sight Range 22 Robot Scan Range 20 Terrain Scan Density 10 Jamming Range 22 Additional Mass Support 20 Corruption Block 8 Armor Coverage 400 Resistance: TH 10 Core Shielding 90 Propulsion Shielding 66 Utility Shielding 66 Weapon Shielding 100 Evasion (%) 77 Melee Accuracy 8 Launcher Accuracy 30 Core Analysis 12 Recoil Reduction 2 Matter Filtering 50 Offensive Hacking 23 Item Schematics ----------------- Neutron Missile Launcher | -6/Factory | Scanalyzed Assault Drone Bay | -5/Zhirov | Free Exp. Heat Sink | -5/Zhirov | Free Imp. Arc Thrower | -5/Zhirov | Free Exp. Optical Array | -5/Zhirov | Free Robot Schematics ------------------ None Fabricated ------------ Nothing Repaired ---------- Field Propulsion Drive | 13% | -6/Factory | Broken Rocket Array | 16% | -4/Factory Studied --------- Nuclear Pulse Thruster | -5/Factory | Hacked Cmb. Gravmag System | -5/Factory | Hacked Gyrokinetic Inverter | -5/Factory | Hacked Alien Tech Used ----------------- Integrated Reactor Sigix Broadsword Core Cannon Dimensional Node Initializer Subatomic Replicator Supercharged TR Achievements -------------- Fixer-Upper Hulk Smash Inventory(Loot) Mistaken Identity Some Acronyms Are Better Than Others UFD MVP We Are One Challenges ------------ None Game ------ Seed AlloyCentriumFirepult Manual? 0 Play Time 03:18:46 Cumulative 408.7 hours Start 2025.11.13 @ 19:20:30 End 2025.11.14 @ 18:54:19 Sessions 3 Manual Loads 0 Difficulty Rogue Special Mode None Game No. 365 Rogue 329 Adventurer 36 Explorer 0 Win Type - Total 16 Types 7/0/9/0/0/0/0/0/0/0 Lore% 72 Gallery% 85 Achievement% 61 Wizard Run 0 Options --------- Layout 0 ASCII 0 Keyboard 0 Movement Mouse Keybinds 0 Fullscreen 1 Font 18/SmallcapsGlow Map View 76x50 Zoom Use 0% Tactical HUD 1 Map Filters NONE Filters NONE Steam 1 RUN: ce5008f5-8c7d-491d-a6b4-0b5d434adc67